fUSD/lending_fUSD_20260218
["ID","MTS","AMOUNT","RATE_DAILY","PERIOD"]
[405956231,1771452640925,-350.0,9.806e-05,2]
[405956232,1771452640934,-166.66,9.816e-05,2]
[405956233,1771452640943,-350.0,9.817e-05,2]
[405956234,1771452640952,-154.0,9.818e-05,3]
[405956235,1771452640962,-350.0,9.82e-05,2]
[405956236,1771452640972,-350.0,9.881e-05,2]
[405956237,1771452640981,-350.0,9.946e-05,2]
[405956238,1771452640990,-995.11978986,0.0001,2]
[405956239,1771452641000,-277.73343163,0.0001,2]
[405956240,1771452641009,-186.24131956,0.0001,2]
[405956241,1771452641018,-2000.0,0.0001,2]
[405956242,1771452641027,-1300.0,0.0001,3]
[405956243,1771452641037,-500.0,0.0001,2]
[405956244,1771452641048,-500.0,0.0001,2]
[405956245,1771452641057,-500.0,0.0001,2]
[405956246,1771452641067,-500.0,0.0001,2]
[405956247,1771452641076,-151.0,0.0001,2]
[405956248,1771452641085,-500.0,0.0001,2]
[405956249,1771452641094,-151.0,0.0001,2]
[405956250,1771452641113,-500.0,0.0001,2]
[405956251,1771452641124,-151.0,0.0001,2]
[405956252,1771452641133,-500.0,0.0001,2]
[405956253,1771452641143,-151.0,0.0001,2]
[405956254,1771452641152,-500.0,0.0001,2]
[405956255,1771452641161,-151.0,0.0001,2]
[405956256,1771452641170,-500.0,0.0001,2]
[405956257,1771452641179,-151.0,0.0001,2]
[405956258,1771452641189,-500.0,0.0001,2]
[405956259,1771452641198,-151.0,0.0001,2]
[405956260,1771452641207,-500.0,0.0001,2]
[405956261,1771452641216,-151.0,0.0001,2]
[405956262,1771452641225,-151.0,0.0001,2]
[405956263,1771452641235,-151.0,0.0001,2]
[405956264,1771452641244,-151.0,0.0001,2]
[405956265,1771452641254,-151.0,0.0001,2]
[405956266,1771452641263,-151.0,0.0001,2]
[405956267,1771452641273,-151.0,0.0001,2]
[405956268,1771452641283,-151.0,0.0001,2]
[405956270,1771452641292,-151.0,0.0001,2]
[405956272,1771452641302,-151.0,0.0001,2]
[405956274,1771452641311,-151.0,0.0001,2]
[405956276,1771452641321,-151.0,0.0001,2]
[405956278,1771452641330,-151.0,0.0001,2]
[405956280,1771452641339,-151.0,0.0001,2]
[405956281,1771452641349,-151.0,0.0001,2]
[405956282,1771452641358,-500.0,0.0001,2]
[405956283,1771452641367,-500.0,0.0001,2]
[405956284,1771452641376,-151.0,0.0001,2]
[405956285,1771452641386,-500.0,0.0001,2]
[405956286,1771452641395,-151.0,0.0001,2]
[405956287,1771452641405,-151.0,0.0001,2]
[405956288,1771452641414,-500.0,0.0001,2]
[405956289,1771452641424,-500.0,0.0001,2]
[405956290,1771452641433,-151.0,0.0001,2]
[405956291,1771452641443,-500.0,0.0001,2]
[405956292,1771452641452,-151.0,0.0001,2]
[405956293,1771452641462,-500.0,0.0001,2]
[405956294,1771452641471,-151.0,0.0001,2]
[405956295,1771452641480,-500.0,0.0001,2]
[405956296,1771452641489,-151.0,0.0001,2]
[405956297,1771452641500,-500.0,0.0001,2]
[405956298,1771452641509,-151.0,0.0001,2]
[405956299,1771452641519,-500.0,0.0001,2]
[405956300,1771452641528,-500.0,0.0001,2]
[405956301,1771452641537,-151.0,0.0001,2]
[405956302,1771452641547,-30456.03816285,0.00010004,2]
[405956303,1771452641556,-350.0,0.000101,2]
[405956304,1771452641566,-166.66,0.0001013,2]
[405956305,1771452641576,-1600.0,0.00010178,2]
[405956306,1771452641585,-2000.0,0.000102,2]
[405956307,1771452641594,-250.0,0.00010222,2]
[405956308,1771452641603,-350.0,0.0001027,2]
[405956309,1771452641612,-1000.0,0.00010274,2]
[405956310,1771452641621,-2000.0,0.000104,2]
[405956311,1771452641631,-1149.27516242,0.00010407,2]
[405956312,1771452641641,-151.0,0.00010417,2]
[405956313,1771452641651,-151.0,0.00010417,2]
[405956314,1771452641660,-151.0,0.00010417,2]
[405956315,1771452641670,-151.0,0.00010417,2]
[405956316,1771452641679,-174072.6967355,0.00010417,2]
[405956317,1771452641689,-166.66,0.00010444,2]
[405956318,1771452641701,-2000.0,0.000106,2]
[405956319,1771452641710,-166.66,0.00010757,2]
[405956320,1771452641720,-2000.0,0.000108,2]
[405956321,1771452641729,-38840.8687,0.00010824,2]
[405956322,1771452641738,-371.20634122,0.00010859,2]
[405956323,1771452641748,-150.0,0.00010959,2]
[405956324,1771452641761,-150.0,0.00010959,2]
[405956325,1771452641770,-14906.89,0.00010959,2]
[405956326,1771452641779,-166.66,0.00010959,2]
[405956327,1771452641788,-235.87,0.00011,2]
[405956328,1771452641799,-2000.0,0.00011,2]
[405956329,1771452641808,-154.0,0.00011036,3]
[405956330,1771452641817,-166.66,0.00011068,2]
[405956331,1771452641827,-166.66,0.00011071,2]
[405956332,1771452641836,-2238.78344439,0.00011099,2]
[405956333,1771452641846,-2238.78344431,0.00011099,2]
[405956334,1771452641855,-2238.78344431,0.00011099,2]
[405956335,1771452641864,-41155.84305184,0.00011099,2]
[405956336,1771452641873,-41155.84305179,0.00011099,2]
[405956337,1771452641882,-41155.84305179,0.00011099,2]
[405956338,1771452641891,-150.0,0.00011103,7]
[405956339,1771452641901,-166.66,0.00011178,2]
[405956340,1771452641910,-11547.4,0.00011233,2]
[405956341,1771452641919,-9999.99,0.00011281,2]
[405956342,1771452641928,-150.99,0.00011281,2]
[405956343,1771452641937,-166.66,0.00011288,2]
[405956344,1771452641947,-1000.0,0.00011301,2]
[405956345,1771452641959,-1600.0,0.00011309,2]
[405956346,1771452641968,-166.66,0.00011397,2]
[405956347,1771452641977,-164.0,0.00011459,12]
[405956348,1771452641986,-166.66,0.00011507,2]
[405956349,1771452641995,-41155.84305179,0.00011629,2]
[405956350,1771452642005,-2238.78344431,0.00011633,2]
[405956351,1771452642016,-248.592671,0.00012245,2]
[405956352,1771452642027,-154.0,0.00012255,3]
[405956353,1771452642039,-1000.0,0.00012329,2]
[405956354,1771452642050,-1600.0,0.0001244,2]
[405956355,1771452642061,-41155.84305179,0.00012674,2]
[405956356,1771452642070,-151.0,0.00012674,2]
[405956357,1771452642080,-151.0,0.00012674,2]
[405956358,1771452642090,-151.0,0.00012674,2]
[405956359,1771452642101,-2238.78344431,0.00012678,2]
[405956360,1771452642111,-303.0,0.000128,2]
[405956361,1771452642120,-1000.0,0.00012924,2]
[405956362,1771452642129,-161.0,0.00013067,3]
[405956363,1771452642138,-174.61919141,0.00013087,2]
[405956364,1771452642147,-578.20924308,0.00013087,2]
[405956365,1771452642156,-500.0,0.00013087,2]
[405956366,1771452642166,-500.0,0.00013087,2]
[405956367,1771452642175,-500.0,0.00013087,2]
[405956368,1771452642184,-500.0,0.00013087,2]
[405956369,1771452642193,-500.0,0.00013087,2]
[405956370,1771452642202,-693.3919763,0.00013087,2]
[405956371,1771452642212,-500.0,0.00013087,2]
[405956372,1771452642221,-573.98994496,0.00013087,2]
[405956373,1771452642230,-162.380719,0.00013087,2]
[405956374,1771452642239,-719.04747942,0.00013142,2]
[405956375,1771452642248,-268.0,0.00013154,2]
[405956376,1771452642257,-150.0,0.00013154,2]
[405956377,1771452642266,-150.0,0.00013154,2]
[405956378,1771452642275,-172.182,0.00013154,2]
[405956379,1771452642285,-150.0,0.00013154,2]
[405956380,1771452642294,-150.0,0.00013154,2]
[405956381,1771452642303,-150.0,0.00013154,2]
[405956382,1771452642312,-150.0,0.00013154,2]
[405956383,1771452642321,-150.0,0.00013154,2]
[405956384,1771452642330,-150.0,0.00013154,2]
[405956385,1771452642339,-1164.0,0.00013154,2]
[405956386,1771452642348,-3492.0,0.00013154,2]
[405956387,1771452642357,-617.0,0.00013154,2]
[405956388,1771452642366,-1275.0,0.00013154,2]
[405956389,1771452642376,-1209.0,0.00013154,2]
[405956390,1771452642384,-5973.0,0.00013154,2]
[405956391,1771452642393,-919.0,0.00013154,2]
[405956392,1771452642406,-2452.0,0.00013154,2]
[405956393,1771452642416,-200.0,0.00013167,2]
[405956394,1771452642425,-745.65223616,0.00013197,2]
[405956395,1771452642434,-773.2413689,0.00013252,2]
[405956396,1771452642444,-801.85129955,0.00013307,2]
[405956397,1771452642453,-1000.0,0.00013355,2]
[405956398,1771452642462,-831.51979763,0.00013362,2]
[405956399,1771452642472,-862.28603014,0.00013417,2]
[405956400,1771452642481,-3240.0,0.00013425,2]
[405956401,1771452642490,-894.19061326,0.00013472,2]
[405956402,1771452642499,-154.0,0.00013473,3]
[405956403,1771452642508,-927.27566595,0.00013527,2]
[405956404,1771452642517,-1600.0,0.00013571,2]
[405956405,1771452642527,-961.58486559,0.00013582,2]
[405956406,1771452642536,-181.08010149,0.00013635,2]
[405956407,1771452642546,-997.16350561,0.00013637,2]
[405956408,1771452642556,-160.0,0.00013686,2]
[405956409,1771452642564,-173.62051493,0.00013686,2]
[405956410,1771452642574,-4219.8,0.00013686,2]
[405956411,1771452642583,-151.0,0.00013695,2]
[405956412,1771452642596,-500.0,0.00013698,2]
[405956413,1771452642605,-500.0,0.00013698,2]
[405956414,1771452642614,-500.0,0.00013698,2]
[405956415,1771452642624,-500.0,0.00013698,2]
[405956416,1771452642634,-500.0,0.00013698,2]
[405956417,1771452642643,-500.0,0.00013698,2]
[405956418,1771452642652,-500.0,0.00013698,2]
[405956419,1771452642661,-500.0,0.00013698,2]
[405956420,1771452642670,-372.32,0.00013698,2]
[405956421,1771452642679,-500.0,0.00013698,2]
[405956422,1771452642689,-500.0,0.00013698,2]
[405956423,1771452642698,-500.0,0.00013698,2]
[405956424,1771452642708,-500.0,0.00013698,2]
[405956425,1771452642718,-500.0,0.00013698,2]
[405956426,1771452642727,-500.0,0.00013698,2]
[405956427,1771452642736,-500.0,0.00013698,2]
[405956428,1771452642746,-500.0,0.00013698,2]
[405956429,1771452642759,-500.0,0.00013698,2]
[405956430,1771452642769,-500.0,0.00013698,2]
[405956431,1771452642779,-500.0,0.00013698,2]
[405956432,1771452642788,-500.0,0.00013698,2]
[405956433,1771452642801,-500.0,0.00013698,2]
[405956434,1771452642810,-500.0,0.00013698,2]
[405956435,1771452642820,-500.0,0.00013698,2]
[405956436,1771452642831,-500.0,0.00013698,2]
[405956437,1771452642841,-500.0,0.00013698,2]
[405956438,1771452642851,-500.0,0.00013698,2]
[405956439,1771452642860,-500.0,0.00013698,2]
[405956440,1771452642870,-500.0,0.00013698,2]
[405956441,1771452642880,-500.0,0.00013698,2]
[405956442,1771452642889,-500.0,0.00013698,2]
[405956443,1771452642899,-500.0,0.00013698,2]
[405956444,1771452642908,-500.0,0.00013698,2]
[405956445,1771452642918,-500.0,0.00013698,2]
[405956446,1771452642927,-500.0,0.00013698,2]
[405956447,1771452642937,-500.0,0.00013698,2]
[405956448,1771452642946,-500.0,0.00013698,2]
[405956449,1771452642955,-500.0,0.00013698,2]
[405956450,1771452642965,-500.0,0.00013698,2]
[405956451,1771452642974,-500.0,0.00013698,2]
[405956452,1771452642984,-500.0,0.00013698,2]
[405956453,1771452642996,-635.95417002,0.00013698,2]
[405956454,1771452643006,-500.0,0.00013698,2]
[405956455,1771452643015,-500.0,0.00013698,2]
[405956456,1771452643024,-500.0,0.00013698,2]
[405956457,1771452643033,-500.0,0.00013698,2]
[405956458,1771452643043,-500.0,0.00013698,2]
[405956459,1771452643053,-500.0,0.00013698,2]
[405956460,1771452643062,-500.0,0.00013698,2]
[405956461,1771452643071,-216.12,0.00013698,2]
[405956462,1771452643080,-464.29440353,0.00013698,2]
[405956463,1771452643089,-539.7,0.00013698,2]
[405956464,1771452643099,-539.7,0.00013698,2]
[405956465,1771452643110,-539.7,0.00013698,2]
[405956466,1771452643121,-539.7,0.00013698,2]
[405956467,1771452643130,-539.7,0.00013698,2]
[405956468,1771452643140,-539.7,0.00013698,2]
[405956469,1771452643149,-539.7,0.00013698,2]
[405956470,1771452643159,-539.7,0.00013698,2]
[405956471,1771452643168,-539.7,0.00013698,2]
[405956472,1771452643177,-539.7,0.00013698,2]
[405956474,1771452643189,-539.7,0.00013698,2]
[405956476,1771452643199,-539.7,0.00013698,2]
[405956478,1771452643208,-539.7,0.00013698,2]
[405956480,1771452643218,-539.7,0.00013698,2]
[405956482,1771452643229,-539.7,0.00013698,2]
[405956484,1771452643239,-539.7,0.00013698,2]
[405956485,1771452643249,-500.0,0.00013698,2]
[405956486,1771452643259,-500.0,0.00013698,2]
[405956487,1771452643269,-500.0,0.00013698,2]
[405956488,1771452643279,-500.0,0.00013698,2]
[405956489,1771452643289,-500.0,0.00013698,2]
[405956490,1771452643300,-500.0,0.00013698,2]
[405956491,1771452643310,-500.0,0.00013698,2]
[405956492,1771452643319,-500.0,0.00013698,2]
[405956493,1771452643330,-500.0,0.00013698,2]
[405956494,1771452643339,-500.0,0.00013698,2]
[405956495,1771452643350,-500.0,0.00013698,2]
[405956496,1771452643361,-500.0,0.00013698,2]
[405956497,1771452643371,-500.0,0.00013698,2]
[405956498,1771452643383,-648.52,0.00013698,2]
[405956499,1771452643393,-500.0,0.00013698,2]
[405956500,1771452643404,-156.0,0.00013698,2]
[405956501,1771452643414,-500.0,0.00013698,2]
[405956502,1771452643424,-500.0,0.00013698,2]
[405956503,1771452643435,-500.0,0.00013698,2]
[405956504,1771452643444,-500.0,0.00013698,2]
[405956505,1771452643454,-500.0,0.00013698,2]
[405956506,1771452643463,-500.0,0.00013698,2]
[405956507,1771452643472,-500.0,0.00013698,2]
[405956508,1771452643482,-500.0,0.00013698,2]
[405956509,1771452643491,-500.0,0.00013698,2]
[405956510,1771452643500,-500.0,0.00013698,2]
[405956511,1771452643509,-500.0,0.00013698,2]
[405956512,1771452643519,-500.0,0.00013698,2]
[405956513,1771452643528,-500.0,0.00013698,2]
[405956514,1771452643538,-620.1235705,0.00013698,2]
[405956515,1771452643547,-500.0,0.00013698,2]
[405956516,1771452643557,-616.8,0.00013698,2]
[405956517,1771452643566,-500.0,0.00013698,2]
[405956518,1771452643575,-500.0,0.00013698,2]
[405956519,1771452643584,-500.0,0.00013698,2]
[405956520,1771452643593,-500.0,0.00013698,2]
[405956521,1771452643602,-500.0,0.00013698,2]
[405956522,1771452643612,-500.0,0.00013698,2]
[405956523,1771452643621,-500.0,0.00013698,2]
[405956524,1771452643630,-500.0,0.00013698,2]
[405956525,1771452643640,-500.0,0.00013698,2]
[405956526,1771452643650,-500.0,0.00013698,2]
[405956527,1771452643659,-500.0,0.00013698,2]
[405956528,1771452643669,-500.0,0.00013698,2]
[405956529,1771452643678,-500.0,0.00013698,2]
[405956530,1771452643688,-500.0,0.00013698,2]
[405956531,1771452643697,-500.0,0.00013698,2]
[405956532,1771452643706,-500.0,0.00013698,2]
[405956533,1771452643716,-500.0,0.00013698,2]
[405956534,1771452643725,-551.5455423,0.00013698,2]
[405956535,1771452643734,-500.0,0.00013698,2]
[405956536,1771452643744,-500.0,0.00013698,2]
[405956537,1771452643755,-156.0,0.00013698,2]
[405956538,1771452643766,-500.0,0.00013698,2]
[405956539,1771452643784,-500.0,0.00013698,2]
[405956540,1771452643794,-500.0,0.00013698,2]
[405956541,1771452643805,-500.0,0.00013698,2]
[405956542,1771452643815,-500.0,0.00013698,2]
[405956543,1771452643825,-616.8,0.00013698,2]
[405956544,1771452643835,-500.0,0.00013698,2]
[405956545,1771452643845,-294.28,0.00013698,2]
[405956546,1771452643854,-4060.7,0.00013698,2]
[405956547,1771452643864,-151.0,0.00013698,2]
[405956548,1771452643873,-151.0,0.00013698,2]
[405956549,1771452643883,-259.193144,0.00013698,2]
[405956550,1771452643892,-4060.23,0.00013699,2]
[405956551,1771452643902,-200.0,0.00013699,2]
[405956552,1771452643911,-150.0,0.000137,2]
[405956553,1771452643920,-4059.87,0.000137,2]
[405956554,1771452643930,-4059.15,0.00013719,2]
[405956555,1771452643939,-41155.84305179,0.00013719,2]
[405956556,1771452643949,-2238.78344431,0.00013722,2]
[405956557,1771452643958,-1900.0,0.000139,5]
[405956558,1771452643968,-1000.0,0.00014166,2]
[405956559,1771452643977,-187.78006525,0.00014183,2]
[405956560,1771452643986,-5175.65,0.00014309,2]
[405956561,1771452643995,-371.20634122,0.0001438,2]
[405956562,1771452644251,-155.22793176,0.00014456,2]
[405956563,1771452644261,-1000.0,0.00014563,2]
[405956564,1771452644272,-1000.0,0.00014608,2]
[405956565,1771452644281,-154.0,0.00014691,3]
[405956566,1771452644290,-194.72792766,0.00014731,2]
[405956567,1771452644301,-41155.84305179,0.00014764,2]
[405956568,1771452644312,-2238.78344431,0.00014767,2]
[405956569,1771452644321,-1000.0,0.00014819,2]
[405956570,1771452644330,-1000.0,0.00014823,2]
[405956571,1771452644339,-150.0,0.00014839,2]
[405956572,1771452644348,-539.7,0.00014916,2]
[405956573,1771452644357,-350.85311866,0.0001495,2]
[405956574,1771452644367,-250.0,0.00015,2]
[405956575,1771452644376,-900.0,0.00015068,2]
[405956576,1771452644385,-150.0,0.00015085,2]
[405956577,1771452644394,-1000.0,0.00015093,2]
[405956578,1771452644403,-1000.0,0.00015171,2]
[405956579,1771452644413,-10000.0,0.00015275,2]
[405956580,1771452644422,-151.0,0.00015279,2]
[405956581,1771452644431,-151.0,0.00015279,2]
[405956582,1771452644440,-295.70915122,0.00015279,2]
[405956583,1771452644449,-1000.0,0.00015309,2]
[405956584,1771452644457,-1513.22,0.0001531,2]
[405956585,1771452644470,-1000.0,0.00015349,2]
[405956586,1771452644480,-150.0,0.00015362,2]
[405956587,1771452644489,-500.0,0.00015375,2]
[405956588,1771452644498,-1000.0,0.00015388,2]
[405956589,1771452644508,-1000.0,0.00015436,2]
[405956590,1771452644517,-300.0,0.00015491,2]
[405956591,1771452644528,-150.0,0.00015507,2]
[405956592,1771452644538,-1000.0,0.00015589,2]
[405956593,1771452644549,-176.04753717,0.00015771,2]
[405956594,1771452644560,-151.0,0.00015807,2]
[405956595,1771452644571,-41155.84305179,0.0001581,2]
[405956596,1771452644580,-2238.78344431,0.00015811,2]
[405956597,1771452644590,-1000.0,0.00015822,2]
[405956598,1771452644599,-599.60298507,0.00015826,2]
[405956599,1771452644608,-150.0,0.00015875,2]
[405956600,1771452644619,-1000.0,0.00015902,2]
[405956601,1771452644629,-154.0,0.00015909,3]
[405956602,1771452644638,-507.0,0.0001605,2]
[405956603,1771452644647,-150.0,0.00016083,2]
[405956604,1771452644657,-150.0,0.0001609,2]
[405956605,1771452644667,-150.0,0.00016114,2]
[405956606,1771452644676,-150.0,0.00016154,2]
[405956607,1771452644685,-150.0,0.00016154,2]
[405956608,1771452644694,-150.0,0.00016154,2]
[405956609,1771452644703,-150.0,0.00016154,2]
[405956610,1771452644712,-150.0,0.00016154,2]
[405956611,1771452644721,-150.0,0.00016154,2]
[405956612,1771452644731,-150.0,0.00016154,2]
[405956613,1771452644741,-1164.0,0.00016154,2]
[405956614,1771452644751,-3492.0,0.00016154,2]
[405956615,1771452644765,-617.0,0.00016154,2]
[405956616,1771452644774,-1275.0,0.00016154,2]
[405956617,1771452644784,-1209.0,0.00016154,2]
[405956618,1771452644794,-5973.0,0.00016154,2]
[405956619,1771452644806,-919.0,0.00016154,2]
[405956620,1771452644815,-2452.0,0.00016154,2]
[405956621,1771452644824,-1000.0,0.00016154,2]
[405956622,1771452644836,-150.0,0.00016175,2]
[405956623,1771452644845,-150.0,0.00016211,2]
[405956624,1771452644854,-1000.0,0.00016267,2]
[405956625,1771452644867,-152.568081,0.00016316,7]
[405956626,1771452644876,-580.049566,0.00016327,7]
[405956627,1771452644886,-500.0,0.00016356,2]
[405956628,1771452644895,-500.0,0.00016356,2]
[405956629,1771452644904,-500.0,0.00016356,2]
[405956630,1771452644914,-151.0,0.0001638,2]
[405956631,1771452644923,-151.0,0.0001638,2]
[405956632,1771452644933,-51513.0,0.0001638,2]
[405956633,1771452644942,-150.0,0.00016382,2]
[405956634,1771452644952,-1000.0,0.00016432,2]
[405956635,1771452644962,-900.0,0.00016438,2]
[405956636,1771452644972,-150.0,0.00016509,2]
[405956637,1771452644981,-150.0,0.00016554,2]
[405956638,1771452644991,-1000.0,0.00016569,2]
[405956639,1771452645001,-150.0,0.00016633,2]
[405956640,1771452645010,-1000.0,0.00016686,2]
[405956641,1771452645019,-150.0,0.00016687,2]
[405956642,1771452645029,-1000.0,0.00016688,2]
[405956643,1771452645039,-167.06,0.00016712,2]
[405956644,1771452645049,-160.0,0.0001672,2]
[405956645,1771452645059,-150.0,0.00016827,2]
[405956646,1771452645069,-41155.84305179,0.00016855,2]
[405956647,1771452645080,-2238.78344431,0.00016856,2]
[405956648,1771452645091,-51513.0,0.0001692,2]
[405956649,1771452645101,-1000.0,0.00016925,2]
[405956650,1771452645110,-150.0,0.00016936,2]
[405956651,1771452645120,-500.0,0.00017,7]
[405956652,1771452645130,-500.0,0.00017,7]
[405956653,1771452645140,-500.0,0.00017,7]
[405956654,1771452645149,-500.0,0.00017,7]
[405956655,1771452645159,-500.0,0.00017,7]
[405956656,1771452645169,-500.0,0.00017,7]
[405956657,1771452645179,-500.0,0.00017,7]
[405956658,1771452645188,-500.0,0.00017,7]
[405956659,1771452645198,-500.0,0.00017,7]
[405956660,1771452645207,-500.0,0.00017,7]
[405956661,1771452645217,-500.0,0.00017,7]
[405956662,1771452645226,-500.0,0.00017,7]
[405956663,1771452645236,-500.0,0.00017,7]
[405956664,1771452645245,-500.0,0.00017,7]
[405956665,1771452645254,-500.0,0.00017,7]
[405956666,1771452645264,-500.0,0.00017,7]
[405956667,1771452645274,-500.0,0.00017,7]
[405956668,1771452645283,-500.0,0.00017,7]
[405956669,1771452645292,-500.0,0.00017,7]
[405956670,1771452645301,-500.0,0.00017,7]
[405956671,1771452645310,-500.0,0.00017,7]
[405956672,1771452645319,-500.0,0.00017,7]
[405956673,1771452645328,-500.0,0.00017,7]
[405956674,1771452645338,-500.0,0.00017,7]
[405956675,1771452645347,-500.0,0.00017,7]
[405956676,1771452645356,-500.0,0.00017,7]
[405956677,1771452645366,-500.0,0.00017,7]
[405956678,1771452645376,-500.0,0.00017,7]
[405956679,1771452645385,-500.0,0.00017,7]
[405956680,1771452645394,-500.0,0.00017,7]
[405956681,1771452645404,-500.0,0.00017,7]
[405956682,1771452645413,-500.0,0.00017,7]
[405956683,1771452645423,-300.0,0.00017,2]
[405956684,1771452645432,-500.0,0.00017,7]
[405956685,1771452645442,-500.0,0.00017,7]
[405956686,1771452645451,-500.0,0.00017,7]
[405956687,1771452645461,-500.0,0.00017,7]
[405956688,1771452645471,-500.0,0.00017,7]
[405956689,1771452645480,-500.0,0.00017,7]
[405956690,1771452645490,-500.0,0.00017,7]
[405956691,1771452645499,-500.0,0.00017,7]
[405956692,1771452645508,-500.0,0.00017,7]
[405956693,1771452645518,-500.0,0.00017,7]
[405956694,1771452645528,-532.48,0.00017,7]
[405956695,1771452645537,-551.21,0.00017,7]
[405956696,1771452645547,-500.0,0.00017,7]
[405956697,1771452645556,-500.0,0.00017,7]
[405956698,1771452645566,-500.0,0.00017,7]
[405956699,1771452645575,-500.0,0.00017,7]
[405956700,1771452645585,-500.0,0.00017,7]
[405956701,1771452645594,-500.0,0.00017,7]
[405956702,1771452645604,-500.0,0.00017,7]
[405956703,1771452645613,-500.0,0.00017,7]
[405956704,1771452645623,-500.0,0.00017,7]
[405956705,1771452645632,-500.0,0.00017,7]
[405956706,1771452645641,-500.0,0.00017,7]
[405956707,1771452645651,-500.0,0.00017,7]
[405956708,1771452645660,-500.0,0.00017,7]
[405956709,1771452645670,-500.0,0.00017,7]
[405956710,1771452645679,-500.0,0.00017,7]
[405956711,1771452645688,-500.0,0.00017,7]
[405956712,1771452645698,-500.0,0.00017,7]
[405956713,1771452645707,-500.0,0.00017,7]
[405956714,1771452645717,-500.0,0.00017,7]
[405956715,1771452645727,-500.0,0.00017,7]
[405956716,1771452645736,-500.0,0.00017,7]
[405956717,1771452645746,-500.0,0.00017,7]
[405956718,1771452645758,-500.0,0.00017,7]
[405956719,1771452645767,-500.0,0.00017,7]
[405956720,1771452645776,-500.0,0.00017,7]
[405956721,1771452645786,-500.0,0.00017,7]
[405956722,1771452645796,-500.0,0.00017,7]
[405956723,1771452645806,-500.0,0.00017,7]
[405956724,1771452645816,-500.0,0.00017,7]
[405956725,1771452645826,-500.0,0.00017,7]
[405956726,1771452645836,-500.0,0.00017,7]
[405956727,1771452645845,-500.0,0.00017,7]
[405956728,1771452645855,-500.0,0.00017,7]
[405956729,1771452645864,-500.0,0.00017,7]
[405956730,1771452645873,-500.0,0.00017,7]
[405956731,1771452645883,-442.7,0.00017,7]
[405956732,1771452645892,-500.0,0.00017,7]
[405956733,1771452645902,-500.0,0.00017,7]
[405956734,1771452645911,-500.0,0.00017,7]
[405956735,1771452645921,-500.0,0.00017,7]
[405956736,1771452645930,-500.0,0.00017,7]
[405956737,1771452645940,-500.0,0.00017,7]
[405956738,1771452645949,-500.0,0.00017,7]
[405956739,1771452645959,-500.0,0.00017,7]
[405956740,1771452645969,-500.0,0.00017,7]
[405956741,1771452645978,-507.0,0.00017034,2]
[405956742,1771452645988,-150.0,0.00017055,2]